Cogmind - Beta 14 @@@ ROGUE MODE // 2024.08.12 @ 19:02:42 Player: Monday Result: Destroyed by G-34 Mercenary with Small Laser Performance ------------- Evolutions (0) 0 Regions Visited (1) 200 Robots Destroyed (14) 70 Value Destroyed (490) 490 Prototype IDs (0) 0 Alien Tech Used (0) 0 Bonus (0) 0 TOTAL SCORE: 760 Bonus ------- None Cogmind --------- Core Integrity 0/250 Matter 257/300 Energy 42/250 System Corruption 2% Temperature Cool (14) Movement Walking (120) Location -10/Materials Parts ------- > --- POWER (1) -------- Ion Engine > --- PROPULSION (2) --- Aluminum Leg Aluminum Leg > --- UTILITY (2) ------ Heat Sink Improved Terrain Scanner > --- WEAPON (2) ------- Mining Laser Mining Claw > --- INVENTORY (5) ---- Light Ion Engine Flight Unit Small Laser Peak State ------------ > --- POWER ------------ Light Nuclear Core > --- PROPULSION ------- Aluminum Leg Aluminum Leg > --- UTILITY ---------- Heat Sink Improved Terrain Scanner > --- WEAPON ----------- Particle Gun Assault Rifle > --- INVENTORY -------- Light Ion Engine Wheel Wheel Light Assault Rifle Mining Laser [Rating: 12] Favorites ----------- Power Light Ion Engine Engine Light Ion Engine Power Core Light Nuclear Core Propulsion Aluminum Leg Leg Aluminum Leg Utility Improved Terrain Scanner Device Improved Terrain Scanner Weapon Assault Rifle Energy Gun Small Laser Ballistic Gun Assault Rifle Special Weapon Mining Laser Slashing Weapon Mining Claw Build | -11 -10 ------- Run | Yrd Mat Slots Evolved . | . . Power . | . . Propulsion . | . . Utility . | . . Weapon . | . . Parts Attached 23 | 7 16 Power 5 | 1 4 Engine 3 | 1 2 Core 2 | . 2 Reactor . | . . Propulsion 5 | 2 3 Treads . | . . Leg 5 | 2 3 Wheel . | . . Hover . | . . Flight . | . . Utility 4 | 2 2 Device 4 | 2 2 Storage . | . . Processor . | . . Hackware . | . . Protection . | . . Artifact . | . . Weapon 9 | 2 7 Energy Gun 2 | . 2 Energy Cannon . | . . Ballistic Gun 5 | 2 3 Ballistic Cannon . | . . Launcher . | . . Special Weapon 1 | . 1 Impact Weapon . | . . Slashing Weapon 1 | . 1 Piercing Weapon . | . . Special Melee Weapon . | . . Unidentified Prototypes . | . . Parts Lost 1 | . 1 Power . | . . Propulsion 1 | . 1 Utility . | . . Weapon . | . . Highest Loss Streak 1 | . 1 To Critical Strikes . | . . Average Slot Usage (%) 98 | . 98 Engine 6 | . 6 Core 6 | . 6 Leg 27 | . 27 Device 28 | . 28 Energy Gun 6 | . 6 Ballistic Gun 17 | . 17 Special Weapon 2 | . 2 Slashing Weapon 2 | . 2 Peak Build Rating 12 | 9 12 Average Rating 8 | 4 9 On Entrance 4 | . 9 Naked Turns . | . . Heaviest Build 12 | 9 12 Greatest Support 20 | 20 20 Greatest Overweight (x) 1 | . 1 Average Overweight (x) . | . . Largest Inventory Capacity 5 | 5 5 Average Capacity 5 | 5 5 Most Carried 5 | 5 5 Average Carried 4 | 2 4 Final Capacity 5 | 5 5 Final Carried 5 | 5 3 Class Distribution -------------------- 50% | Mutant 49% | Scavenger-Mutant Dominant Class ---------------- Scavenger-Mutant | -10/Materials Resources | -11 -10 ----------- Run | Yrd Mat Matter Collected 532 | 312 220 Remotely . | . . Salvage Created 555 | 73 482 Parts 29 | 6 23 Haulers Intercepted . | . . Recyclers Shooed . | . . Parts Field Recycled . | . . Retrieved Matter . | . . Parts Self-Destructed . | . . Prevented . | . . Kills | -11 -10 ------- Run | Yrd Mat Combat Hostiles Destroyed 12 | 1 11 Guns 12 | 1 11 Classes Destroyed 3 | 2 1 Tunneler 1 | 1 . Watcher 1 | . 1 Grunt 12 | 1 11 Best Kill Streak 3 | 2 3 Combat Bots Only 3 | 1 3 Max Kills in Single Turn 1 | 1 1 Gunslinging . | . . Exploded . | . . Melee . | . . Uniques/NPCs Destroyed . | . . Combat | -11 -10 -------- Run | Yrd Mat Hostile Shots Fired 92 | 10 82 Missed 25 | 6 19 Damage Taken 893 | 41 852 Core 252 | 10 242 Absorbed by Shields . | . . Regen/Repaired (Parts) 28 | . 28 Core Remaining (%) 96 | 96 . Volleys Fired 50 | 7 43 Largest 2 | 2 2 Hottest 100 | 40 100 Shots Fired 95 | 14 81 Gun 90 | 14 76 Cannon . | . . Launcher . | . . Special 5 | . 5 Kinetic 62 | 14 48 Thermal 33 | . 33 Explosive . | . . Electromagnetic . | . . Robot Hit Streak 7 | 3 7 Robot Miss Streak 3 | 2 3 Penetration Max . | . . Secondary Targets 4 | . 4 Max Gunslinging Chain 1 | . 1 Shots Hit Robots 62 | 7 55 Core Hits 29 | 3 26 Critical Kills . | . . Critical Parts Destroyed 1 | . 1 Critical Strikes 1 | . 1 Destroy 1 | . 1 Melee Attacks . | . . Impact . | . . Slashing . | . . Piercing . | . . Sneak Attacks . | . . Combat Hostiles . | . . Follow-up Attacks . | . . Damage Inflicted 814 | 97 717 Guns 790 | 97 693 Cannons . | . . Explosions . | . . Melee . | . . Ramming . | . . Kinetic 501 | 97 404 Thermal 313 | . 313 Explosive . | . . Electromagnetic . | . . Impact . | . . Slashing . | . . Piercing . | . . Highest Corruption 2 | . 2 Average Corruption 2 | . 2 Corruption Purged . | . . Corruption Blocked . | . . Effects 1 | . 1 Message Errors 1 | . 1 Overload Shots . | . . Overflow Damage . | . . Projectiles . | . . Explosions . | . . Melee . | . . Knockbacks . | . . Impact . | . . Kinetic . | . . Secondary . | . . Self-Inflicted Damage 85 | . 85 Shots 3 | . 3 Rammed . | . . Targets Rammed . | . . Kicked . | . . Crushed . | . . Highest Temperature 62 | . 62 Average Temperature 21 | . 21 Received Heat Transfer 450 | 24 426 Siege Activations . | . . Robots Corrupted . | . . Combat Hostiles . | . . Parts Fried . | . . Impact Corruptions . | . . Robots Melted . | . . Combat Hostiles . | . . Parts Melted . | . . Heat Transferred 721 | . 721 Parts Sabotaged . | . . Parts Stolen . | . . Parts Stripped . | . . Power Chain Reactions 2 | . 2 Alert | -11 -10 ------- Run | Yrd Mat Peak Influence 254 | 25 254 Initial 16 | . 16 Average 97 | 7 118 Maximum Alert Level 1 | . 1 Low Security (%) 77 | 100 71 Level 1 22 | . 28 Level 2 . | . . Level 3 . | . . Level 4 . | . . Level 5 . | . . High Security . | . . Max Security . | . . Squads Dispatched 2 | . 2 Investigation 2 | . 2 Extermination . | . . Reinforcement . | . . Assault . | . . Garrison . | . . Intercept . | . . Searches Triggered . | . . Construction Impeded . | . . Haulers Reinforced . | . . Active Scanning Responses . | . . Cargo Convoy Interrupts . | . . Stealth | -11 -10 --------- Run | Yrd Mat Distress Signals 2 | . 2 Communications Jammed . | . . Distress Signals . | . . Times Spotted 18 | 1 17 Peak Tracking Total 6 | 1 6 Tactical Retreats 2 | . 2 Traps | -11 -10 ------- Run | Yrd Mat Traps Triggered 2 | . 2 Indirectly . | . . Trap Hack Attempts . | . . Triggered . | . . Disarmed . | . . Reprogrammed . | . . Reused . | . . Traps Extracted . | . . Installed . | . . Triggered . | . . Machines | -11 -10 ---------- Run | Yrd Mat Machines Disabled 2 | . 2 Max in Single Turn 2 | . 2 Machines Repaired . | . . Machines Dismantled . | . . Machines Sabotaged . | . . Overloaded Fab Kills . | . . Hacking | -11 -10 --------- Run | Yrd Mat Machines Accessed 3 | . 3 Terminals 2 | . 2 Fabricators . | . . Repair Stations 1 | . 1 Recycling Units . | . . Scanalyzers . | . . Garrison Access . | . . Total Hacks 10 | . 10 Successful 7 | . 7 Failed 3 | . 3 Catastrophic . | . . Database Lockouts . | . . Manual . | . . Terminals 6 | . 6 Fabricators . | . . Repair Stations 4 | . 4 Recycling Units . | . . Scanalyzers . | . . Garrison Access . | . . Terminal Hacks 5 | . 5 Record 3 | . 3 Alert Level 2 | . 2 Fabricator Hacks . | . . Repair Station Hacks 2 | . 2 Scan Component 1 | . 1 Repair 1 | . 1 Recycling Unit Hacks . | . . Scanalyzer . | . . Garrison Access Hacks . | . . Unauthorized Hacks . | . . Terminals . | . . Fabricators . | . . Repair Stations . | . . Recycling Units . | . . Scanalyzers . | . . Garrison Access . | . . Data Cores Recovered . | . . Used . | . . Hacking Detections 2 | . 2 Full Trace Events . | . . Feedback Events . | . . Feedback Blocked . | . . Robot Schematics Acquired . | . . Robots Built . | . . Authchips . | . . Time . | . . Total Robot Build Rating . | . . Part Schematics Acquired . | . . Parts Built . | . . Authchips . | . . Time . | . . Total Part Build Rating . | . . Parts Repaired 1 | . 1 Time 38 | . 38 Parts Recycled . | . . Recycled Matter . | . . Retrieved Matter . | . . Retrieved Components . | . . Parts Scanalyzed . | . . Part Schematics Acquired . | . . Parts Damaged . | . . Bothacking | -11 -10 ------------ Run | Yrd Mat Used RIF Installer . | . . Robots Hacked . | . . Non-combat . | . . Combat . | . . Robot Hacks Applied . | . . Relay Couplers Released . | . . Fabnet Peak Effective % . | . . Robots Rewired . | . . Allies Hacked . | . . Hacks Repelled . | . . Allies | -11 -10 -------- Run | Yrd Mat Total Allies . | . . Largest Group . | . . Highest-Rated Group . | . . Highest-Rated Ally . | . . Total Orders . | . . Ally Attacks . | . . Total Damage . | . . Kills . | . . Allies Corrupted . | . . Allies Melted . | . . Intel | -11 -10 ------- Run | Yrd Mat Robot Analysis Total . | . . Derelict Logs Recovered . | . . Drone Launches . | . . Drone Recoveries . | . . Exploration | -11 -10 ------------- Run | Yrd Mat Turns Passed 857 | 159 698 Spaces Moved 389 | 93 296 Core 18 | 18 . Treads . | . . Legs 371 | 75 296 Wheels . | . . Hover . | . . Flight . | . . Fastest Speed 50 | 50 120 Average Speed 116 | 106 120 Slowest Speed 190 | 120 190 Overloaded Moves . | . . Propulsion Burnouts . | . . Robots Hopped . | . . Cave-ins Triggered . | . . Exploration Rate (%) 24 | 10 38 Regions Visited 1 Branch Regions . Pre-discovered Areas . | . . Known Exits Taken . | . . Unknown Exits Taken 1 | 1 . Scrap Searched . | . . Spaces Dug . | . . Terrain Destroyed 5 | . 5 Melee . | . . Projectile 2 | . 2 AOE 3 | . 3 Terrain Rammed . | . . Walls Destroyed . | . . Machines Disabled . | . . Actions | -11 -10 --------- Run | Yrd Mat Total 695 | 139 556 Wait 201 | 21 180 Move 388 | 92 296 Hop . | . . Pick Up 18 | 12 6 Fast Attach 9 | . 9 Attach 11 | 7 4 Detach . | . . Swap 3 | . 3 Drop 15 | . 15 Fire 50 | 7 43 Melee . | . . Ram . | . . Kick . | . . Crush . | . . Escape Stasis . | . . Rewire . | . . Trap . | . . Miscellaneous . | . . Route ------- -11/Scrapyard -10/Materials (discovered 1 exit: [*Min]) History --------- Turn | Location | Event 2 | -11/Scrapyard | Met Revision 17 88 | -11/Scrapyard | Discovered new exit (range 8) 160 | -11/Scrapyard | Entered Materials 313 | -10/Materials | Build established: Mutant 560 | -10/Materials | Core integrity fell below 50% 593 | -10/Materials | Discovered new exit (range 16) 669 | -10/Materials | Repaired Lgt. Nuclear Core 730 | -10/Materials | Build established: Scavenger-Mutant 853 | -10/Materials | Core integrity fell below 20% 858 | -10/Materials | Destroyed by G-34 Mercenary with Small Laser Last Messages --------------- Backup Propulsion I tumbles out of repair station. U-05 Engineer builds a Wall. Dropped Sml. Laser. E0UMFV ZQD/K8FL>WSFP 9B: Acquired Mining Claw. Bump into an enemy to attack with the active melee weapon. Even while active, melee weapons do not fire together with ranged weapons in the same volley. Dropped Lgt. Assault Rifle. W-16 Scout destroyed. Acquired 4 matter. Triggered Alarm Trap. An alarm sounds. ALERT: Alarm triggered, dispatching investigation squad. Dropped Lgt. Nuclear Core. Acquired Ion Engine. Acquired Flight Unit. Map ----- +----------------------------------------------------+ | | | | | | | | | | | ?????????#############???????????????????????????? | | ?????????# #???????????????????????????? | | ?#???#???# ! #???????????????????????????? | | ??#?#????# ##??????????????????????????? | | ?#???????# [ #???????????????????????????? | | ####??#### #?#??#??????????????????????? | | """##?# + ! # ?????????????????????????? | | |||"### ## [ # ????????????????????????? | | ""## #######+###### ????? ???????????????????? | | ## ##??## #???? ????????????????????????? | | < ## ###### #??#? ????????????????????????? | | ## #???? ??????#?????????????????? | | ## #??#?? ??#?? #?????????????????? | | ### #?##?? ???? #????"????????????? | | #### #??#?? ??? #?????????????????? | | #######+### +?????????????????? | | #?????????????????? | | """"""" #?????????????????? | | """"""" u g #?????????????????? | | """"""" ###########;g;######?????????????????? | | """"""" #??????### @ #????????????????????? | | """"""" #??? ????# #????????????????????? | | #???? ???# #????????????????????? | | #?#??"???# * ** #????#???????????????? | | """"""" ###?""???# *** #????????????????????? | | """"""" # ""???# *** #????????????????????? | | """"""" + ? ???########????????????????????? | | """"""" # ??? ?????????????????????????????? | | """"""" # ??????#??????????????????????????? | | % #?????????????#????????????????????? | | % # ?? ??????????????????????????????? | | #??? ??????????????????????????????? | | ###????????????????????????????????? | | #?????????????????????????????????? | | "T" #????#??#?????????????????????????? | | """ #?????#???????????????????????????? | | #?????????????????????????????????? | | ???????????????????????????????? | | ##########???????????????????????????????? | | # #???????????????????????????????????? | | # # #?????????????????????????????????? | | # # ?? #?????????????????????????????????? | | ### ???#?????????????????????????????????? | | #??###??#??????????????????????????????????? | | #???#??#???????????????????????????????????? | +----------------------------------------------------+ Best States ------------- Heat Dissipation 35 Energy Generation 14 Energy Capacity 250 Matter Stores 300 Matter Capacity 300 Sight Range 16 Terrain Scan Range 16 Terrain Scan Density 10 Evasion (%) 55 Item Schematics ----------------- None Robot Schematics ------------------ None Fabricated ------------ Nothing Alien Tech Used ----------------- None Achievements -------------- Part-time Mechanic Challenges ------------ None Game ------ Seed LaserShrapnelLattice Manual? 0 Play Time 00:13:35 Cumulative 1.1 hours Start 2024.08.12 @ 18:48:26 End 2024.08.12 @ 19:02:42 Sessions 1 Manual Loads 0 Difficulty Rogue Special Mode None Game No. 2 Rogue 2 Adventurer 0 Explorer 0 Win Type - Total 0 Types 0/0/0/0/0/0/0/0/0 Lore% 0 Gallery% 2 Achievement% 0 Wizard Run 0 Options --------- Layout 1 ASCII 0 Keyboard 0 Movement Mouse Keybinds 0 Fullscreen 1 Font 24/Smallcaps Map View 50x35 Zoom Use 0% Tactical HUD 0 Map Filters NONE Filters NONE Steam 1 RUN: 9a2c611c-b94b-4250-9ebf-7d9f4e2d7339